bitfinex-derivatives/quotes_ETHF0:USTF0_20250403
["timestamp","ask_amount","ask_price","bid_price","bid_amount"]
[1743696155612,4.9093,1786.7,1786.2,7.2758]
[1743696155613,1.1198,1786.6,1786.4,1.11986]
[1743696156015,8.1171,1786.7,1786.4,1.11986]
[1743696156313,1.11982,1786.5,1786.4,1.11986]
[1743696156813,4.9093,1786.7,1786.5,1.1198]
[1743696157017,6.02903,1786.7,1786.5,1.1198]
[1743696157314,1.11975,1786.6,1786.5,1.1198]
[1743696157509,1.11983,1786.5,1786.4,1.11985]
[1743696157709,1.11982,1786.5,1786.4,1.11985]
[1743696158021,1.11988,1786.4,1786.3,4.32773]
[1743696158216,1.11986,1786.5,1786.3,3.2078]
[1743696158416,1.11986,1786.5,1786.4,1.11988]
[1743696158612,1.11987,1786.5,1786.3,4.32772]
[1743696158921,10.91634,1786.7,1786.3,4.32772]
[1743696159120,1.11987,1786.5,1786.3,4.32772]
[1743696159314,4.102,1786.4,1786.2,5.89]
[1743696159518,5.22193,1786.4,1786.2,7.00999]
[1743696159817,1.11994,1786.3,1786.2,7.00999]
[1743696160014,3.56354,1786.7,1786.2,5.89]
[1743696160319,5.22186,1786.5,1786.4,1.11987]
[1743696160611,4.102,1786.5,1786.4,1.11988]
[1743696160817,1.11983,1786.5,1786.4,1.11984]
[1743696161211,1.11983,1786.5,1786.2,8.69]
[1743696161212,3.2078,1786.6,1786.2,5.89]
[1743696161417,1.11994,1786.3,1786.2,5.89]
[1743696161616,1.11994,1786.3,1786.2,7.01]
[1743696162019,4.102,1786.4,1786.2,5.89]
[1743696162318,1.11984,1786.5,1786.4,1.11988]
[1743696162511,7.3098,1786.6,1786.2,7.2919]
[1743696162713,1.11992,1786.4,1786.3,1.11992]
[1743696163721,1.11994,1786.3,1786.2,7.00999]
[1743696164018,5.22194,1786.3,1786.2,5.89]
[1743696164716,1.12007,1786.1,1786.0,40.8]
[1743696165015,1.12013,1786.0,1785.9,0.00840548]
[1743696165223,5.22213,1786.0,1785.9,0.00840548]
[1743696165415,7.72213,1786.0,1785.9,0.00840548]
[1743696165920,5.22213,1786.0,1785.9,0.00840548]
[1743696166814,7.72213,1786.0,1785.9,0.00840548]
[1743696167510,5.22213,1786.0,1785.9,0.00840548]
[1743696168020,6.68703,1786.0,1785.9,0.00840548]
[1743696168417,9.18703,1786.0,1785.9,0.00840548]
[1743696168617,6.68703,1786.0,1785.9,0.00840548]
[1743696170522,6.68703,1786.0,1785.9,1.12859548]
[1743696170925,4.102,1786.0,1785.9,1.12859548]
[1743696171226,5.22197,1786.3,1786.2,1.12]
[1743696171629,5.22199,1786.3,1786.2,1.12]
[1743696172018,4.102,1786.3,1786.2,1.12]
[1743696172221,5.22187,1786.5,1786.4,1.11986]
[1743696172618,1.11988,1786.4,1786.3,2.57679]
[1743696173025,2.59638,1786.4,1786.3,1.4569]
[1743696173227,2.59638,1786.4,1786.3,2.57684]
[1743696174542,6.305,1786.6,1786.3,4.6647]
[1743696174737,1.11988,1786.5,1786.4,2.61372]
[1743696175236,7.42481,1786.6,1786.5,1.11982]
[1743696175440,2.79889,1787.0,1786.5,4.7017]
[1743696175735,1.11969,1786.7,1786.6,2.61361]
[1743696176128,3.2078,1787.1,1786.6,4.29323]
[1743696176441,1.11947,1787.1,1787.0,1.11947]
[1743696176935,1.11947,1787.1,1787.0,43.34427]
[1743696177134,1.11933,1787.3,1787.0,45.02352]
[1743696177333,3.2078,1787.4,1787.0,45.78082]
[1743696177528,4.32711,1787.4,1787.1,4.22337]
[1743696177728,2.64322,1787.5,1787.2,4.6326]
[1743696177935,1.524,1787.5,1787.4,1.11925]
[1743696178140,3.2078,1787.8,1787.4,4.32701]
[1743696178333,1.524,1787.6,1787.4,4.32701]
[1743696178536,2.64317,1787.6,1787.4,5.75181]
[1743696178835,2.64313,1787.6,1787.4,5.75181]
[1743696179039,1.11919,1787.5,1787.4,3.2078]
[1743696179240,1.524,1787.5,1787.3,1.11931]
[1743696179435,1.11925,1787.4,1787.3,2.54411]
[1743696179835,1.524,1787.5,1787.3,1.4248]
[1743696180040,1.11925,1787.4,1787.3,1.4248]
[1743696180429,1.524,1787.5,1787.3,1.11931]
[1743696180636,1.11931,1787.3,1787.2,7.00935]
[1743696181033,1.11931,1787.3,1787.2,7.00938]
[1743696181236,5.21931,1787.3,1787.2,5.89]
[1743696181436,1.11942,1787.2,1787.0,7.76675]
[1743696181737,2.53772,1787.2,1787.0,8.035]
[1743696181937,4.1,1787.3,1787.1,1.3877]
[1743696182137,2.53757,1787.4,1787.1,1.3877]
[1743696182338,2.53758,1787.4,1787.1,1.3877]
[1743696182637,1.11896,1787.9,1787.6,1.11913]
[1743696182847,1.03386891,1788.1,1788.0,1.11888]
[1743696183036,1.11894,1787.9,1787.8,1.11899]
[1743696183236,1.4572,1788.0,1787.9,1.12734548]
[1743696183547,2.57608,1788.0,1787.9,40.80840548]
[1743696184144,1.11873,1788.3,1788.1,1.1188]
[1743696184340,1.4747,1788.4,1788.3,1.11869]
[1743696184341,4.116,1788.4,1788.3,1.11869]
[1743696184534,3.2078,1788.6,1788.1,9.0978]
[1743696184842,1.02546343,1789.3,1788.5,3.2078]
[1743696185043,4.23326343,1789.3,1788.8,3.2078]
[1743696185241,1.02546343,1789.3,1789.1,3.2078]
[1743696185538,3.2078,1789.6,1788.9,0.00840548]
[1743696185539,1.11821,1789.1,1788.9,0.00840548]
[1743696185745,5.41425,1789.0,1788.9,0.00840548]
[1743696185947,6.91255,1789.0,1788.9,0.00840548]
[1743696186332,5.7943,1789.0,1788.9,0.00840548]
[1743696186739,2.61655,1789.0,1788.9,0.00840548]
[1743696187343,1.4983,1789.0,1788.9,0.00840548]
[1743696187534,2.61655,1789.0,1788.9,0.00840548]
[1743696188345,5.11655,1789.0,1788.9,0.00840548]
[1743696189340,1.11844,1788.7,1788.6,0.7501]
[1743696189635,1.11844,1788.7,1788.1,3.2078]
[1743696189636,1.11874,1788.3,1788.0,1.11885]
[1743696189841,5.39876,1788.2,1788.0,5.89]
[1743696190039,4.28,1788.2,1788.0,5.89]
[1743696190253,4.28,1788.2,1788.1,1.11881]
[1743696190543,4.28,1788.4,1788.3,1.11865]
[1743696190749,4.28,1788.4,1788.3,4.32645]
[1743696190939,4.28,1788.4,1788.3,3.2078]
[1743696191139,5.39863,1788.4,1788.3,3.2078]
[1743696191353,5.39863,1788.4,1788.1,5.89]
[1743696191545,7.4868,1789.0,1788.2,3.2078]
[1743696191848,3.2078,1789.0,1788.5,1.11853]
[1743696192044,1.11846,1788.7,1788.5,1.11855]
[1743696192246,4.3,1788.8,1788.6,1.11848]
[1743696192439,1.11835,1788.9,1788.7,1.11844]
[1743696192645,1.11833,1788.9,1788.7,1.11844]
[1743696193141,4.299,1789.0,1788.6,7.00845]
[1743696193345,4.32624,1788.7,1788.6,5.89]
[1743696193542,8.62524,1788.7,1788.6,5.89]
[1743696193742,1.11868,1788.4,1788.2,5.89]
[1743696193948,1.11868,1788.4,1788.2,7.00873]
[1743696194144,5.42068,1788.4,1788.2,10.21653]
[1743696194949,4.302,1788.4,1788.3,1.11869]
[1743696195249,4.302,1788.4,1788.2,9.0978]
[1743696195250,1.11866,1788.4,1788.2,9.0978]
[1743696195450,1.11866,1788.4,1788.3,40.8]
[1743696195652,1.11866,1788.4,1788.3,41.91869]
[1743696195839,1.11858,1788.5,1788.3,41.91869]
[1743696196044,2.79588,1788.9,1788.5,1.11856]
[1743696196245,1.11848,1788.7,1788.5,1.11856]
[1743696196447,1.11848,1788.7,1788.5,4.32636]
[1743696196743,3.2078,1789.0,1788.9,1.11831]
[1743696196947,0.00839999,1789.1,1789.0,1.11825]
[1743696197147,0.00839999,1789.1,1789.0,7.00825]
[1743696197353,1.11807,1789.3,1789.2,1.11811]
[1743696197551,4.298,1789.4,1789.2,40.8]
[1743696197747,5.41603,1789.4,1789.2,47.80807]
[1743696197951,6.00217,1789.9,1789.3,9.0978]
[1743696198144,1.1177,1789.9,1789.8,1.11774]
[1743696198344,1.1177,1789.9,1789.5,6.00263]
[1743696198345,3.2078,1790.1,1789.7,3.2078]
[1743696198550,3.2078,1790.1,1789.8,7.00774]
[1743696198743,3.2078,1790.4,1790.0,1.11763]
[1743696198952,3.2078,1790.4,1789.9,9.0978]
[1743696198953,7.5068,1790.4,1789.9,9.0978]
[1743696199441,1.11755,1790.2,1790.0,1.11761]
[1743696199649,7.5068,1790.4,1789.9,5.89]
[1743696199848,1.11763,1790.0,1789.9,5.89]
[1743696200045,6.00137,1790.4,1789.9,5.89]
[1743696200242,4.32543,1790.0,1789.9,5.89]
[1743696200441,1.11769,1789.9,1789.8,5.89]
[1743696200644,4.32549,1789.9,1789.8,5.89]
[1743696200844,6.82549,1789.9,1789.8,5.89]
[1743696201043,1.11769,1789.9,1789.8,5.89]
[1743696201355,1.11775,1789.8,1789.7,0.00838176]
[1743696201548,3.2078,1790.2,1789.7,8.39838176]
[1743696201746,4.32533,1790.2,1789.9,1.11764]
[1743696201953,3.2078,1790.2,1790.0,5.89]
[1743696202159,3.2078,1790.4,1790.0,9.0978]
[1743696202453,1.11744,1790.3,1790.1,5.89]
[1743696202649,1.1175,1790.2,1790.1,5.89]
[1743696202841,8.7213,1790.2,1790.1,5.89]
[1743696203246,1.1175,1790.2,1790.1,5.89]
[1743696203445,4.3253,1790.2,1790.1,5.89]
[1743696203642,1.11775,1789.8,1789.7,5.89838176]
[1743696203854,4.32555,1789.8,1789.7,0.00838176]
[1743696204049,1.11775,1789.8,1789.7,0.00838176]
[1743696204244,1.11771,1789.9,1789.7,1.12619176]
[1743696204451,2.79386,1790.2,1789.7,0.00838176]
[1743696204452,4.423,1790.1,1789.7,0.00838176]
[1743696204651,1.11764,1790.0,1789.8,1.11773]
[1743696204853,3.2078,1790.2,1790.0,1.11759]
[1743696205052,7.6298,1790.4,1790.2,1.11749]
[1743696205555,3.2078,1790.4,1790.3,1.11744]
[1743696205750,4.32503,1790.7,1790.4,1.11737]
[1743696206048,4.429,1790.6,1790.4,1.11737]
[1743696206549,7.6408,1790.7,1790.3,3.2078]
[1743696206944,4.433,1790.7,1790.4,5.89]
[1743696207143,7.6408,1790.7,1790.4,7.00734]
[1743696207359,2.79346,1790.4,1789.9,2.46970001]
[1743696207650,3.2078,1790.1,1789.8,2.46970001]
[1743696207857,1.11769,1789.9,1789.8,2.46970001]
[1743696208048,3.2078,1789.9,1789.7,1.12618176]
[1743696208250,4.32549,1789.9,1789.7,1.12618176]
[1743696208549,1.11769,1789.9,1789.7,1.12618176]
[1743696208852,5.55867,1790.0,1789.8,1.11775]
[1743696209353,5.55867,1790.0,1789.7,0.00838176]
[1743696209354,1.11775,1789.8,1789.7,0.00838176]
[1743696209946,3.61775,1789.8,1789.7,0.00838176]
[1743696210350,8.04775,1789.8,1789.7,0.00838176]
[1743696211051,8.14628407,1789.8,1789.7,0.00838176]
[1743696211247,3.7162878,1789.8,1789.7,0.00838176]
[1743696211448,8.04675,1789.8,1789.7,0.00838176]
[1743696211859,5.54675,1789.8,1789.7,0.00838176]
[1743696212154,4.429,1789.8,1789.7,1.12619176]
[1743696212353,5.54675,1789.8,1789.7,0.00838176]
[1743696212550,1.11775,1789.8,1789.7,0.00838176]
[1743696212751,5.55775,1789.8,1789.7,0.00838176]
[1743696213347,4.44,1789.8,1789.7,1.12619176]
[1743696213553,5.55775,1789.8,1789.7,0.00838176]
[1743696214551,5.55775,1789.8,1789.7,1.12619176]
[1743696214754,5.55775,1789.8,1789.7,0.00838176]
[1743696216360,8.05775,1789.8,1789.7,0.00838176]
[1743696217555,8.15628053,1789.8,1789.7,0.00838176]
[1743696217759,3.2078,1790.5,1789.8,2.79439]
[1743696217947,3.2078,1790.5,1790.0,2.79402]
[1743696218148,1.11746,1790.3,1790.0,4.32539]
[1743696218348,1.11746,1790.3,1789.7,0.00838176]
[1743696218349,7.7568,1790.5,1790.1,40.8]
[1743696218549,1.11748,1790.3,1790.1,40.8]
[1743696218762,5.6635,1790.2,1789.9,1.11763]
[1743696219055,5.6635,1790.2,1790.0,1.533]
[1743696219056,7.1068,1790.2,1790.0,1.533]
[1743696219452,5.9893,1790.2,1790.0,2.65059]
[1743696219850,5.9893,1790.2,1790.1,1.533]
[1743696220258,7.1068,1790.2,1790.1,1.533]
[1743696220450,3.2078,1790.5,1790.1,1.533]
[1743696220652,4.536,1790.2,1790.1,1.533]
[1743696220853,4.548,1790.2,1790.1,2.65056]
[1743696221257,4.548,1790.2,1790.1,1.533]
[1743696221964,4.548,1790.2,1790.1,2.65056]
[1743696222159,4.548,1790.2,1790.1,1.533]
[1743696222359,11.7403,1790.2,1789.9,0.6762]
[1743696222560,4.32543,1790.0,1789.9,0.6762]
[1743696222962,1.11774,1789.9,1789.7,0.10908176]
[1743696223262,4.537,1789.8,1789.7,1.22689176]
[1743696223463,2.60211,1790.1,1789.7,3.31688176]
[1743696223657,4.53,1790.0,1789.9,1.11769]
[1743696223853,4.53,1790.0,1789.8,1.11775]
[1743696224063,4.53,1790.0,1789.7,3.31688176]
[1743696224261,4.53,1790.0,1789.9,1.11769]
[1743696225664,4.53,1790.0,1789.9,4.32549]
[1743696226164,0.99430664,1790.5,1789.9,5.63750001]
[1743696226366,4.53,1790.4,1790.3,1.11742]
[1743696226657,0.99430664,1790.5,1790.4,1.11738]
[1743696226865,9.2065,1790.7,1790.5,1.1173]
[1743696227060,1.4717,1790.6,1790.5,1.1173]
[1743696227263,1.4717,1790.6,1790.5,41.9173]
[1743696227765,2.58897,1790.6,1790.4,1.11735]
[1743696228262,4.527,1790.7,1790.6,1.11725]
[1743696228662,4.527,1790.7,1790.6,1.83565]
[1743696229166,0.16860797,1790.8,1790.7,1.11719]
[1743696229360,0.16860797,1790.8,1790.6,4.26531001]
[1743696229861,6.16790797,1790.8,1790.6,3.54692001]
[1743696230057,0.698,1790.7,1790.6,3.54692001]
[1743696230261,0.698,1790.7,1790.6,4.26532001]
[1743696230766,1.10855736,1791.2,1790.6,3.2184]
[1743696231069,3.2078,1791.7,1791.4,1.11675]
[1743696231262,9.4611,1791.7,1791.1,0.6951]
[1743696231560,4.7191,1791.6,1791.3,1.11681]
[1743696231762,1.5113,1791.5,1791.2,41.5417]
[1743696231958,3.2078,1791.3,1791.0,3.2078]
[1743696232164,2.9785,1791.2,1791.1,1.11694]
[1743696232463,0.7011,1791.2,1791.1,42.65864]
[1743696232867,4.752,1791.3,1791.1,42.65859]
[1743696233067,0.7011,1791.2,1791.1,42.65859]
[1743696233659,4.752,1791.3,1791.2,1.11688]
[1743696233860,4.752,1791.3,1791.2,4.32468]
[1743696234365,0.7075,1791.4,1791.2,4.32462]
[1743696234562,4.765,1791.5,1791.2,5.63750001]
[1743696234767,7.9728,1791.5,1791.3,1.11679]
[1743696235062,1.11676,1791.4,1791.2,2.42970001]
[1743696235367,0.7075,1791.3,1790.9,1.11703]
[1743696235562,4.771,1791.2,1791.0,1.11697]
[1743696235860,4.771,1791.2,1791.1,1.11694]
[1743696236062,3.2078,1791.6,1791.3,1.11679]
[1743696236458,0.7075,1791.5,1791.4,2.54665]
[1743696236658,0.7075,1791.5,1791.4,1.4299]
[1743696236864,3.99672,1791.5,1791.2,3.9174]
[1743696237053,4.781,1791.4,1791.2,3.9174]
[1743696237257,1.11684,1791.3,1791.1,2.42970001]
[1743696237465,0.7191,1791.2,1791.1,2.42970001]
[1743696237665,1.4851,1791.2,1791.1,2.42970001]
[1743696238259,1.4851,1791.2,1791.1,3.90180001]
[1743696238669,1.4851,1791.2,1791.1,1.4721]
[1743696239074,4.08038,1791.2,1790.9,1.86884]
[1743696239260,4.771,1791.1,1790.9,2.2239]
[1743696239462,1.11703,1791.0,1790.7,1.12553176]
[1743696239664,1.11709,1790.9,1790.7,0.00838176]
[1743696239863,7.0062,1790.8,1790.7,2.59767176]
[1743696240065,4.775,1790.8,1790.7,2.59767176]
[1743696240857,4.775,1790.8,1790.7,0.00838176]
[1743696241162,13.07213,1790.8,1790.7,0.00838176]
[1743696241466,13.17020761,1790.8,1790.7,1.76e-06]
[1743696241970,1.11725,1790.6,1790.5,1.36313176]
[1743696242178,4.42312761,1790.6,1790.5,1.76e-06]
[1743696242364,6.92312761,1790.6,1790.5,1.76e-06]
[1743696242558,1.11731,1790.5,1790.4,1.76e-06]
[1743696242761,1.11775,1789.8,1789.7,0.7775]
[1743696242964,5.90675,1789.8,1789.7,40.8]
[1743696243368,4.789,1789.8,1789.7,40.8]
[1743696243566,4.789,1789.8,1789.6,1.46278176]
[1743696243865,1.11781,1789.7,1789.6,1.46278176]
[1743696244069,2.63901,1789.7,1789.6,42.26278176]
[1743696244269,2.63901,1789.7,1789.6,0.00838176]
[1743696244469,4.729,1789.7,1789.6,0.00838176]
[1743696244676,2.63901,1789.7,1789.6,0.00838176]
[1743696244869,5.13901,1789.7,1789.6,0.00838176]
[1743696245776,5.13901,1789.7,1789.6,1.76e-06]
[1743696246170,5.23715149,1789.7,1789.6,1.76e-06]
[1743696246371,4.11934149,1789.7,1788.5,3.2078]
[1743696246570,1.11832,1788.9,1788.6,4.92916001]
[1743696246875,4.862,1788.8,1788.7,45.3888]
[1743696247068,4.862,1788.9,1788.8,1.11836]
[1743696247271,56.337,1789.3,1789.1,1.11819]
[1743696247272,62.31806,1789.3,1789.1,1.11819]
[1743696247477,62.31806,1789.3,1789.2,1.381]
[1743696248073,61.2,1789.3,1788.9,1.8642]
[1743696248270,1.11821,1789.1,1788.9,3.2452]
[1743696248575,1.5067,1789.2,1788.9,3.2452]
[1743696248770,1.11825,1789.0,1788.9,1.1731]
[1743696249077,5.97425,1789.0,1788.9,1.1731]
[1743696249774,11.68205,1789.0,1788.9,1.1731]
[1743696250272,13.07905,1789.0,1788.9,1.1731]
[1743696251077,11.9608,1789.0,1787.8,3.2078]
[1743696251278,11.9608,1789.0,1787.9,1.5265]
[1743696251279,1.11888,1788.0,1787.9,1.5265]
[1743696251475,6.04188,1788.0,1787.9,1.5265]
[1743696251676,4.923,1788.0,1787.9,1.5265]
[1743696251877,0.6988,1788.4,1787.9,9.37350001]
[1743696252078,1.11843,1788.8,1788.5,1.11853]
[1743696252268,1.11846,1788.7,1788.6,1.5106]
[1743696253071,1.11846,1788.7,1788.2,5.75750001]
[1743696253072,10.6308,1788.7,1788.2,5.75750001]
[1743696253275,1.11868,1788.4,1788.3,1.5106]
[1743696253980,1.11875,1788.2,1788.1,2.54970001]
[1743696254277,2.7966,1788.4,1788.0,43.35808177]
[1743696254278,1.11881,1788.1,1788.0,43.35808177]
[1743696254680,4.923,1788.3,1788.0,43.35808177]
[1743696254881,1.11881,1788.1,1788.0,43.35808177]
[1743696255183,1.11881,1788.1,1788.0,44.77308177]
[1743696255876,1.11881,1788.1,1788.0,0.00838176]
[1743696256178,6.82661,1788.1,1788.0,0.00838176]
[1743696256574,5.79991,1788.1,1788.0,0.00838176]
[1743696257979,2.59211,1788.1,1788.0,0.00838176]
[1743696258279,0.7263,1788.2,1788.0,0.00838176]
[1743696258478,6.00426,1788.5,1788.0,2.55808177]
[1743696258784,1.1187,1788.3,1788.1,2.55917]
[1743696258969,1.11869,1788.3,1788.2,1.4404]
[1743696259574,1.11869,1788.3,1788.2,42.2404]
[1743696259775,1.11869,1788.3,1788.2,45.4482]
[1743696259974,4.897,1788.6,1788.2,50.49790001]
[1743696260280,1.11869,1788.3,1788.2,44.79010001]
[1743696260582,1.11881,1788.1,1788.0,0.00838176]
[1743696261086,3.61881,1788.1,1788.0,0.00838176]
[1743696261289,5.81621,1788.1,1788.0,0.00838176]
[1743696261577,9.02401,1788.1,1788.0,0.00838176]
[1743696261789,5.81621,1788.1,1788.0,0.00838176]
[1743696261972,9.02401,1788.1,1788.0,0.00838176]
[1743696263987,9.02401,1788.1,1788.0,1.76e-06]
[1743696264875,6.52401,1788.1,1788.0,1.76e-06]
[1743696265078,9.02401,1788.1,1788.0,1.76e-06]
[1743696265579,5.59501,1787.9,1786.8,5.75750001]
[1743696265777,1.11948,1787.1,1786.9,1.11955]
[1743696265978,1.1195,1787.0,1786.8,6.87708001]
[1743696266181,4.896,1787.1,1786.7,3.66937001]
[1743696266377,1.11963,1786.8,1786.7,2.54970001]
[1743696266578,1.11974,1786.7,1786.4,6.87734001]
[1743696266782,4.894,1786.7,1786.5,1.11982]
[1743696267087,1.11975,1786.6,1786.5,2.61852]
[1743696267274,1.11975,1786.6,1786.5,1.4987]
[1743696267581,4.894,1786.7,1786.5,1.4987]
[1743696267788,6.01371,1786.7,1786.5,2.61848]
[1743696267985,1.11975,1786.6,1786.5,1.4987]
[1743696268184,1.11975,1786.6,1786.5,2.61852]
[1743696268382,6.01374,1786.7,1786.5,2.61852]
[1743696268683,1.11975,1786.6,1786.5,1.4987]
[1743696269084,4.894,1786.7,1786.5,1.4987]
[1743696269481,4.894,1786.7,1786.6,4.32755]
[1743696270096,6.01369,1786.7,1786.6,4.32755]
[1743696270282,6.01369,1786.7,1786.6,3.2078]
[1743696270878,6.01369,1786.7,1786.6,4.32755]
[1743696271184,1.1193,1787.4,1787.3,1.11929]
[1743696271489,2.79799,1787.5,1787.0,3.2078]
[1743696271788,2.79783,1787.6,1787.3,1.11931]
[1743696271789,4.23923,1787.6,1787.3,1.11931]
[1743696272086,1.11919,1787.5,1787.4,2.63065]
[1743696272286,1.11919,1787.5,1787.4,1.5114]
[1743696272482,1.11957,1787.0,1786.9,1.11953]
[1743696272687,1.11957,1787.0,1786.9,1.5114]
[1743696272884,1.11957,1787.0,1786.9,2.63097]
[1743696273079,1.11957,1787.0,1786.9,1.5114]
[1743696273485,1.11957,1786.9,1786.8,2.55808177]
[1743696273688,1.11957,1786.9,1786.8,1.46738176]
[1743696274284,1.11957,1786.9,1786.8,0.00838176]
[1743696276690,1.85397,1786.9,1786.8,0.00838176]
[1743696277492,0.7344,1786.9,1786.8,0.00838176]
[1743696277794,1.85397,1786.9,1786.8,0.00838176]
[1743696278000,3.33767,1786.9,1786.8,0.00838176]
[1743696278292,3.2078,1787.3,1786.8,8.51524176]
[1743696278484,1.11929,1787.4,1787.1,1.11941]
[1743696278680,1.11929,1787.4,1787.0,3.2078]
[1743696278681,1.11931,1787.3,1787.2,1.4024]
[1743696278885,2.60301,1787.3,1787.2,1.4024]
[1743696279082,1.11944,1787.1,1787.0,3.2078]
[1743696279292,6.05344,1787.1,1786.9,2.52196]
[1743696279688,6.05344,1787.1,1786.9,1.4024]
[1743696280194,4.934,1787.1,1786.9,2.52196]
[1743696280394,6.05346,1787.1,1786.9,1.4024]
[1743696280590,1.1195,1787.0,1786.9,1.4024]
[1743696280790,1.11957,1786.9,1786.8,0.00838176]
[1743696281088,2.52415,1787.0,1786.8,0.00838176]
[1743696281291,1.11957,1786.9,1786.8,0.00838176]
[1743696281489,4.32737,1786.9,1786.8,0.00838176]
[1743696282483,1.11957,1786.9,1786.8,0.00838176]
[1743696283995,2.56597,1786.9,1786.8,0.00838176]
[1743696284798,5.06597,1786.9,1786.8,0.00838176]
[1743696286889,1.11957,1786.9,1786.8,0.00838176]
[1743696287197,4.934,1787.1,1786.8,1.52288176]
[1743696287496,1.11957,1786.9,1786.8,2.64247176]
[1743696287796,5.98256,1787.0,1786.8,2.64247176]
[1743696287992,1.11945,1787.1,1787.0,1.11948]
[1743696288193,4.858,1787.2,1786.9,1.5145]
[1743696288394,1.1195,1787.0,1786.9,1.5145]
[1743696288896,1.11947,1787.1,1786.9,2.63407]
[1743696289097,1.11942,1787.2,1786.9,1.5145]
[1743696289295,4.856,1787.3,1787.2,1.11933]
[1743696289499,1.11928,1787.4,1787.3,1.11931]
[1743696289693,1.11919,1787.5,1787.3,1.11931]
[1743696289996,1.11919,1787.5,1787.4,1.4911]
[1743696290387,1.12755176,1787.6,1787.5,1.11919]
[1743696290595,5.97851176,1787.6,1787.5,1.11919]
[1743696290795,4.85938176,1787.6,1787.5,1.11919]
[1743696291795,5.97855176,1787.6,1787.4,1.4911]
[1743696291989,0.00838176,1787.6,1787.5,4.32699]
[1743696292496,1.12751176,1787.6,1787.5,40.8]
[1743696292695,1.12751176,1787.6,1787.5,42.2953]
[1743696293089,0.00838176,1787.6,1787.5,43.41449]
[1743696293398,0.00838176,1787.6,1787.5,2.61449]
[1743696293997,1.12751176,1787.6,1787.5,1.4953]
[1743696294595,0.00838176,1787.6,1787.5,2.61449]
[1743696294900,0.00838176,1787.6,1787.5,5.82229]
[1743696295998,0.00838176,1787.6,1787.5,4.7031]
[1743696296492,0.00838176,1787.6,1787.3,3.2078]
[1743696296493,1.52488176,1787.6,1787.3,3.2078]
[1743696296698,5.93021,1787.5,1787.2,5.11084001]
[1743696296892,1.11926,1787.4,1787.2,3.99150001]
[1743696297091,2.63576,1787.4,1787.2,5.11087001]
[1743696297296,1.5165,1787.4,1787.3,1.11931]
[1743696297491,1.76e-06,1787.6,1787.5,1.11919]
[1743696297690,1.76e-06,1787.6,1787.5,4.32699]
[1743696297907,1.76e-06,1787.6,1787.5,6.82699]
[1743696299300,1.76e-06,1787.6,1787.5,7.27414728]
[1743696299907,1.76e-06,1787.6,1787.5,6.82699]
[1743696300103,1.76e-06,1787.6,1787.5,9.37669001]
[1743696300305,3.2078,1788.6,1788.5,1.11856]
[1743696300306,1.4708,1788.6,1788.5,1.11856]
[1743696300499,1.76230465,1788.8,1788.5,1.11856]
[1743696300698,2.1852,1788.8,1788.6,1.1185]
[1743696301005,4.825,1789.1,1788.8,1.11837]
[1743696301203,2.5742,1789.0,1788.9,1.4642]
[1743696302103,1.11831,1788.9,1788.8,2.55808177]
[1743696302295,2.57421,1788.9,1788.8,2.55808177]
[1743696303606,5.07421,1788.9,1788.8,2.55808177]
[1743696304199,2.57421,1788.9,1788.8,2.55808177]
[1743696304699,0.00838176,1789.1,1789.0,1.11825]
[1743696305201,0.00838176,1789.1,1789.0,4.32605]
[1743696305421,0.00838176,1789.1,1789.0,3.2078]
[1743696305601,0.00838176,1789.1,1788.8,3.67642177]
[1743696305803,2.60490176,1789.1,1788.8,3.67642177]
[1743696306106,1.48668176,1789.1,1789.0,1.11825]
[1743696306299,0.00838176,1789.1,1789.0,6.87575001]
[1743696306506,3.2078,1789.7,1789.5,1.11789]
[1743696306698,2.59613,1789.7,1789.5,1.11792]
[1743696306898,1.4783,1789.7,1789.6,1.11788]
[1743696307402,4.832,1789.8,1789.4,9.97887001]
[1743696307609,1.11785,1789.7,1789.5,1.11792]
[1743696307808,2.58825,1789.7,1789.4,8.30185001]
[1743696308011,1.4704,1789.7,1789.5,1.11793]
[1743696308209,1.11791,1789.6,1789.4,3.97610001]
[1743696308511,1.11804,1789.4,1789.1,2.54970001]
[1743696308699,1.4704,1789.3,1789.1,3.97610001]
[1743696308902,4.824,1789.2,1789.1,3.97610001]
[1743696309299,5.94213,1789.2,1789.1,3.97610001]
[1743696309505,1.11827,1789.0,1788.8,2.55808177]
[1743696309702,6.2914,1788.9,1788.8,5.10286177]
[1743696309908,4.818,1788.9,1788.8,3.67646177]
[1743696310510,4.818,1789.2,1789.1,1.11817]
[1743696310808,4.818,1789.2,1789.1,1.11819]
[1743696311014,5.93614,1789.2,1789.0,4.32602]
[1743696311209,4.818,1789.2,1788.8,3.67641177]
[1743696311409,4.818,1789.2,1788.8,6.88422177]
[1743696311410,2.53923,1789.1,1788.8,6.88422177]
[1743696311609,1.11827,1789.0,1788.8,6.88422177]
[1743696311806,2.53927,1789.0,1788.8,3.67642177]
[1743696312012,6.29694,1789.7,1788.8,3.67642177]
[1743696312013,2.80270818,1789.8,1789.1,2.79543]
[1743696312213,4.2157,1789.6,1789.2,5.75750001]
[1743696312507,9.0627,1789.6,1789.2,2.54970001]
[1743696312708,6.268,1789.6,1789.2,2.54970001]
[1743696312920,7.38592,1789.6,1789.3,1.11803]
[1743696313109,7.38592,1789.6,1789.2,2.54970001]
[1743696313110,7.38588,1789.6,1789.4,1.11798]
[1743696313315,9.06284,1789.6,1789.2,2.54970001]
[1743696313519,1.11805,1789.4,1789.2,3.66783001]
[1743696313711,1.11798,1789.5,1789.2,2.54970001]